[Event "Malawi Championship (W)"]
[Site "followchess.com"]
[Date "2022.04.18"]
[Round "9"]
[White "Tadeyo Charity"]
[Black "Shriyan santosh Priyasha"]
[Result "0-1"]
[WhiteElo "1096"]
[BlackElo "1583"]
[ECO "A10"]
[WhiteFed "MAW"]
[BlackFed "MAW"]
[FCGameId "-182782762"]
[WhiteFideId "20506988"]
[BlackFideId "20505353"]
[TimeControl "5400+00"]

1. c4 {[%clk 1:29:39]} g6 {[%clk 1:29:49]} 2. Nc3 {[%clk 1:29:24]} Bg7 
{[%clk 1:29:39]} 3. g3 {[%clk 1:28:58]} Nf6 {[%clk 1:29:22]} 4. Bg2 
{[%clk 1:28:45]} d6 {[%clk 1:29:06]} 5. Nf3 {[%clk 1:28:15]} e5 {[%clk 1:28:45]} 
6. e4 {[%clk 1:27:49]} O-O {[%clk 1:28:22]} 7. d3 {[%clk 1:27:41]} c6 
{[%clk 1:27:59]} 8. O-O {[%clk 1:27:28]} Re8 {[%clk 1:27:34]} 9. b3 
{[%clk 1:26:15]} Bg4 {[%clk 1:25:31]} 10. Qd2 {[%clk 1:22:37]} Qd7 
{[%clk 1:23:56]} 11. Re1 {[%clk 1:20:36]} Bh3 {[%clk 1:23:16]} 12. Ng5 
{[%clk 1:19:46]} Bxg2 {[%clk 1:22:28]} 13. Kxg2 {[%clk 1:19:36]} d5 
{[%clk 1:21:43]} 14. cxd5 {[%clk 1:18:08]} cxd5 {[%clk 1:21:27]} 15. exd5 
{[%clk 1:17:08]} Nxd5 16. Nge4 {[%clk 1:15:20]} Nxc3 {[%clk 1:19:45]} 17. Nxc3 
{[%clk 1:14:41]} Nc6 {[%clk 1:19:19]} 18. Bb2 {[%clk 1:13:54]} Rad8 
{[%clk 1:18:07]} 19. Rad1 {[%clk 1:12:36]} Nd4 {[%clk 1:14:34]} 20. Ne4 
{[%clk 1:10:50]} f5 {[%clk 1:13:31]} 21. Bxd4 {[%clk 1:10:01]} Qxd4 
{[%clk 1:13:10]} 22. Ng5 {[%clk 1:08:32]} Qd5+ 23. f3 {[%clk 1:07:34]} h6 
{[%clk 1:10:05]} 24. Nh3 {[%clk 1:07:11]} e4 {[%clk 1:09:01]} 25. Nf4 
{[%clk 1:05:18]} Qf7 {[%clk 1:08:10]} 26. fxe4 {[%clk 1:02:38]} fxe4 
{[%clk 1:06:08]} 27. Qf2 {[%clk 1:01:40]} g5 {[%clk 1:03:13]} 28. Nh3 
{[%clk 1:00:41]} Qg6 {[%clk 0:54:26]} 29. dxe4 {[%clk 0:58:53]} Rxd1 
{[%clk 0:54:13]} 30. Rxd1 {[%clk 0:58:24]} Qxe4+ 31. Kg1 {[%clk 0:56:30]} Qg4 
{[%clk 0:52:50]} 32. Qf1 {[%clk 0:55:10]} Bd4+ 33. Nf2 {[%clk 0:53:09]} Bxf2+ 
34. Kg2 {[%clk 0:51:06]} Bb6 {[%clk 0:46:31]} 35. Qc4+ Qxc4 {[%clk 0:46:19]} 36. 
bxc4 {[%clk 0:50:06]} Re2+ 37. Kh3 {[%clk 0:49:47]} Rxa2 {[%clk 0:45:47]} 38. 
Rd7 {[%clk 0:49:34]} Rc2 {[%clk 0:45:12]} 39. Rxb7 Rxc4 40. Rd7 {[%clk 0:47:58]} 
Rc7 {[%clk 0:44:52]} 41. Rd8+ Kg7 {[%clk 0:44:40]} 42. Kg4 {[%clk 0:47:29]} Rc4+ 
0-1

[Event "Malawi Championship (W)"]
[Site "followchess.com"]
[Date "2022.04.18"]
[Round "9"]
[White "Banda Tapiwa"]
[Black "Namangale, Susan"]
[Result "1-0"]
[WhiteElo "1114"]
[BlackElo "1301"]
[ECO "B07"]
[WhiteFed "MAW"]
[BlackFed "MAW"]
[FCGameId "1939078286"]
[WhiteFideId "20505230"]
[BlackFideId "20501790"]
[TimeControl "5400+00"]

1. e4 {[%clk 1:29:57]} d6 {[%clk 1:29:39]} 2. Nf3 {[%clk 1:29:45]} b6 
{[%clk 1:29:19]} 3. Bc4 {[%clk 1:29:32]} e6 {[%clk 1:28:52]} 4. d3 
{[%clk 1:29:26]} Bb7 {[%clk 1:28:23]} 5. a3 {[%clk 1:29:18]} Be7 
{[%clk 1:27:46]} 6. Ba2 {[%clk 1:29:09]} Nd7 {[%clk 1:26:56]} 7. d4 
{[%clk 1:28:54]} Bxe4 {[%clk 1:26:22]} 8. O-O {[%clk 1:28:49]} f5 
{[%clk 1:25:17]} 9. Nc3 {[%clk 1:28:32]} Bb7 {[%clk 1:24:29]} 10. Bxe6 
{[%clk 1:28:26]} Be4 {[%clk 1:22:44]} 11. Nxe4 {[%clk 1:28:06]} fxe4 12. Nd2 
Ngf6 {[%clk 1:21:07]} 13. Re1 {[%clk 1:28:00]} d5 {[%clk 1:19:53]} 14. c4 
{[%clk 1:27:57]} c6 {[%clk 1:18:51]} 15. Qb3 {[%clk 1:27:46]} Nf8 
{[%clk 1:18:14]} 16. Bh3 {[%clk 1:26:48]} N8d7 {[%clk 1:17:03]} 17. cxd5 
{[%clk 1:26:21]} cxd5 {[%clk 1:15:57]} 18. f3 {[%clk 1:26:12]} O-O 
{[%clk 1:15:01]} 19. fxe4 {[%clk 1:26:08]} Nb8 {[%clk 1:09:44]} 20. e5 
{[%clk 1:25:51]} Nh5 {[%clk 1:08:59]} 21. Be6+ {[%clk 1:25:43]} Kh8 
{[%clk 1:05:47]} 22. Qxd5 {[%clk 1:25:36]} Na6 {[%clk 1:05:01]} 23. Qxd8 
{[%clk 1:25:15]} Raxd8 {[%clk 1:04:20]} 24. Nf3 {[%clk 1:25:08]} Nf4 
{[%clk 1:02:50]} 25. Bxf4 {[%clk 1:24:43]} Rxf4 {[%clk 1:02:29]} 26. Rec1 
{[%clk 1:24:05]} g5 {[%clk 1:01:52]} 27. Rc8 {[%clk 1:22:58]} Rxc8 
{[%clk 0:59:23]} 28. Bxc8 {[%clk 1:22:52]} g4 {[%clk 0:59:02]} 29. Bxa6 
{[%clk 1:22:42]} gxf3 30. Rf1 Rxd4 {[%clk 0:55:02]} 31. Rxf3 {[%clk 1:20:43]} 
Re4 {[%clk 0:52:57]} 32. g3 {[%clk 1:20:28]} Bc5+ 33. Kg2 {[%clk 1:20:15]} Rxe5 
{[%clk 0:52:13]} 34. Rf7 {[%clk 1:19:18]} Re2+ 35. Bxe2 {[%clk 1:19:11]} a5 
{[%clk 0:49:48]} 36. Bd3 {[%clk 1:18:54]} Bd4 {[%clk 0:48:56]} 37. b3 
{[%clk 1:18:39]} h6 {[%clk 0:48:15]} 38. Rh7+ Kg8 {[%clk 0:47:28]} 39. Rxh6 
{[%clk 1:18:31]} Kg7 {[%clk 0:47:20]} 40. Rg6+ Kf7 {[%clk 0:47:13]} 41. Rg4 
{[%clk 1:18:20]} Bb2 {[%clk 0:45:57]} 42. a4 {[%clk 1:18:16]} Be5 
{[%clk 0:44:40]} 43. Rf4+ {[%clk 1:17:46]} Bxf4 {[%clk 0:44:06]} 44. gxf4 
{[%clk 1:17:43]} Kg7 {[%clk 0:43:05]} 45. Kg3 {[%clk 1:17:38]} Kh6 
{[%clk 0:42:36]} 46. Kg4 {[%clk 1:17:33]} Kg7 {[%clk 0:41:17]} 47. Kg5 
{[%clk 1:17:29]} Kf7 {[%clk 0:40:25]} 48. h4 {[%clk 1:17:23]} Kg7 
{[%clk 0:39:50]} 49. h5 {[%clk 1:17:18]} Kh8 {[%clk 0:39:12]} 50. Kg6 
{[%clk 1:17:08]} 1-0

[Event "Malawi Championship (W)"]
[Site "followchess.com"]
[Date "2022.04.18"]
[Round "9"]
[White "Mpinganjira, Ellen"]
[Black "Kapalamula Martha"]
[Result "1/2-1/2"]
[WhiteElo "1360"]
[BlackElo "1155"]
[ECO "C64"]
[WhiteFed "MAW"]
[BlackFed "MAW"]
[FCGameId "856771489"]
[WhiteFideId "16400100"]
[BlackFideId "20505116"]
[TimeControl "5400+00"]

1. e4 {[%clk 1:29:54]} e5 2. Nf3 Nc6 {[%clk 1:29:45]} 3. Bb5 {[%clk 1:29:49]} 
Bc5 {[%clk 1:24:57]} 4. d3 {[%clk 1:29:33]} a6 5. Ba4 {[%clk 1:29:03]} b5 
{[%clk 1:20:19]} 6. Bb3 {[%clk 1:28:58]} h6 {[%clk 1:19:15]} 7. O-O 
{[%clk 1:27:45]} Nf6 {[%clk 1:18:55]} 8. Nc3 {[%clk 1:26:51]} d6 
{[%clk 1:14:43]} 9. h3 {[%clk 1:26:35]} Be6 {[%clk 1:12:58]} 10. Ne2 
{[%clk 1:23:56]} O-O {[%clk 1:11:12]} 11. Ng3 {[%clk 1:22:45]} Qd7 
{[%clk 1:07:59]} 12. Nh2 {[%clk 1:19:34]} a5 {[%clk 1:06:44]} 13. c3 
{[%clk 1:19:06]} a4 {[%clk 1:06:13]} 14. Bc2 {[%clk 1:18:38]} d5 
{[%clk 1:03:28]} 15. Be3 {[%clk 1:11:32]} d4 {[%clk 1:01:42]} 16. cxd4 
{[%clk 1:08:01]} Nxd4 {[%clk 1:00:59]} 17. Nf3 {[%clk 1:04:17]} Qd6 
{[%clk 0:56:52]} 18. Nxd4 {[%clk 1:01:28]} Bxd4 {[%clk 0:56:00]} 19. Bxd4 
{[%clk 1:01:06]} Qxd4 {[%clk 0:54:08]} 20. Qc1 {[%clk 0:59:22]} Nh7 
{[%clk 0:51:44]} 21. a3 {[%clk 0:55:59]} c5 {[%clk 0:49:58]} 22. Ne2 
{[%clk 0:53:18]} Qd7 {[%clk 0:49:26]} 23. f4 {[%clk 0:50:13]} Qd6 
{[%clk 0:46:43]} 24. f5 {[%clk 0:48:10]} Bd7 {[%clk 0:45:23]} 25. Rf3 
{[%clk 0:46:42]} Qf6 {[%clk 0:41:29]} 26. Qe3 {[%clk 0:44:25]} Rac8 
{[%clk 0:39:31]} 27. Raf1 {[%clk 0:42:28]} Rc6 {[%clk 0:37:13]} 28. Ng3 
{[%clk 0:34:03]} Qh4 {[%clk 0:35:58]} 29. Ne2 Kh8 {[%clk 0:32:27]} 30. Kh1 
{[%clk 0:27:56]} f6 {[%clk 0:31:59]} 31. Nc3 {[%clk 0:26:54]} Be8 
{[%clk 0:30:41]} 32. Nxb5 {[%clk 0:21:26]} Ng5 33. Rg3 {[%clk 0:20:24]} g6 
{[%clk 0:23:46]} 34. Bxa4 {[%clk 0:18:18]} gxf5 {[%clk 0:20:20]} 35. Rf2 f4 36. 
Rxf4 {[%clk 0:17:11]} Bg6 {[%clk 0:17:55]} 37. Rf1 {[%clk 0:16:53]} f5 
{[%clk 0:14:34]} 38. Qf2 {[%clk 0:14:34]} f4 {[%clk 0:11:28]} 39. Rg4 
{[%clk 0:13:58]} Qxf2 {[%clk 0:10:23]} 40. Rxf2 {[%clk 0:13:51]} c4 
{[%clk 0:09:49]} 41. Nc3 {[%clk 0:12:16]} Rc5 {[%clk 0:08:17]} 42. dxc4 
{[%clk 0:11:41]} Rxc4 {[%clk 0:07:55]} 43. Bb3 {[%clk 0:11:35]} Rd4 
{[%clk 0:07:43]} 44. h4 {[%clk 0:10:02]} Bh5 {[%clk 0:07:31]} 45. Rxg5 
{[%clk 0:09:30]} hxg5 {[%clk 0:07:26]} 46. hxg5 {[%clk 0:09:22]} Kg7 
{[%clk 0:07:11]} 47. Nb5 {[%clk 0:07:49]} Rd3 {[%clk 0:06:55]} 48. Bd5 
{[%clk 0:07:19]} Rh8 {[%clk 0:06:45]} 49. Kg1 {[%clk 0:06:54]} Rd1+ 
{[%clk 0:06:35]} 50. Rf1 {[%clk 0:06:41]} Rxf1+ 51. Kxf1 {[%clk 0:06:40]} Bf7 
{[%clk 0:06:14]} 52. Nc3 {[%clk 0:05:52]} Rh1+ {[%clk 0:06:05]} 53. Kf2 
{[%clk 0:05:47]} Bxd5 {[%clk 0:06:02]} 54. Nxd5 {[%clk 0:05:45]} 1/2-1/2

[Event "Malawi Championship (W)"]
[Site "followchess.com"]
[Date "2022.04.17"]
[Round "8"]
[White "Shriyan santosh Priyasha"]
[Black "Msukwa, Tupokiwe"]
[Result "1-0"]
[WhiteElo "1583"]
[BlackElo "1371"]
[ECO "A30"]
[WhiteFed "MAW"]
[BlackFed "MAW"]
[FCGameId "1563328634"]
[WhiteFideId "20505353"]
[BlackFideId "20500459"]
[TimeControl "5400+00"]

1. c4 {[%clk 1:29:57]} c5 {[%clk 1:29:42]} 2. g3 {[%clk 1:29:40]} d6 
{[%clk 1:28:56]} 3. Bg2 {[%clk 1:29:15]} Nc6 {[%clk 1:28:30]} 4. Nf3 
{[%clk 1:28:48]} Nf6 {[%clk 1:27:25]} 5. O-O {[%clk 1:28:33]} e6 
{[%clk 1:22:33]} 6. d4 {[%clk 1:28:08]} cxd4 {[%clk 1:22:13]} 7. Nxd4 
{[%clk 1:28:00]} Bd7 {[%clk 1:20:41]} 8. Nb5 {[%clk 1:25:52]} Qb8 
{[%clk 1:17:42]} 9. Bg5 {[%clk 1:25:03]} a6 {[%clk 1:16:17]} 10. Bxf6 
{[%clk 1:20:38]} axb5 {[%clk 1:14:38]} 11. cxb5 {[%clk 1:16:40]} gxf6 
{[%clk 1:14:09]} 12. bxc6 {[%clk 1:15:55]} Bxc6 {[%clk 1:13:22]} 13. e4 
{[%clk 1:15:04]} Bg7 {[%clk 1:09:52]} 14. Nc3 {[%clk 1:14:29]} Qc7 
{[%clk 1:07:50]} 15. Qg4 {[%clk 1:12:24]} Rg8 {[%clk 1:06:34]} 16. Rac1 
{[%clk 1:11:11]} Qe7 {[%clk 1:05:13]} 17. Rfe1 {[%clk 1:10:14]} Kf8 
{[%clk 1:01:37]} 18. Qh5 {[%clk 1:09:04]} h6 {[%clk 1:00:47]} 19. Nd5 
{[%clk 1:05:10]} Bxd5 {[%clk 1:00:04]} 20. exd5 f5 {[%clk 0:58:14]} 21. dxe6 
{[%clk 1:02:37]} fxe6 {[%clk 0:57:45]} 22. Bd5 {[%clk 1:00:12]} Qg5 
{[%clk 0:50:08]} 23. Qxg5 {[%clk 0:59:37]} hxg5 {[%clk 0:49:56]} 24. Bxe6 
{[%clk 0:59:18]} Rh8 {[%clk 0:49:37]} 25. Rc7 {[%clk 0:57:00]} Re8 
{[%clk 0:47:30]} 26. Rf7+ Kg8 {[%clk 0:46:36]} 27. Rf6+ Rxe6 {[%clk 0:45:04]} 
28. Rfxe6 {[%clk 0:52:32]} Be5 {[%clk 0:44:20]} 29. Re8+ Kf7 {[%clk 0:44:00]} 
30. Rxh8 {[%clk 0:50:27]} Bxh8 {[%clk 0:43:57]} 31. Rd1 {[%clk 0:49:39]} Ke6 
{[%clk 0:42:43]} 32. b3 {[%clk 0:49:14]} Be5 {[%clk 0:41:18]} 33. Kf1 
{[%clk 0:48:37]} Kd7 {[%clk 0:40:37]} 34. Ke2 {[%clk 0:48:06]} Kc6 
{[%clk 0:39:48]} 35. Ke3 {[%clk 0:47:33]} f4+ 36. Kf3 {[%clk 0:47:19]} fxg3 
{[%clk 0:39:27]} 37. fxg3 {[%clk 0:46:57]} b5 {[%clk 0:38:29]} 38. h4 
{[%clk 0:46:19]} gxh4 39. gxh4 Kc5 {[%clk 0:37:32]} 40. Ke4 {[%clk 0:45:44]} Kb4 
{[%clk 0:37:22]} 41. Rd2 {[%clk 0:45:29]} Kc3 {[%clk 0:36:33]} 42. Rd5 
{[%clk 0:44:52]} Bf6 {[%clk 0:35:24]} 43. h5 {[%clk 0:44:27]} Kb4 
{[%clk 0:34:55]} 44. Rxd6 {[%clk 0:44:09]} Ba1 {[%clk 0:34:13]} 45. h6 
{[%clk 0:43:37]} Ka3 {[%clk 0:34:06]} 46. Ra6+ Kb4 {[%clk 0:33:59]} 47. h7 
{[%clk 0:43:14]} Bg7 {[%clk 0:33:29]} 48. Ra8 {[%clk 0:42:50]} Bc3 
{[%clk 0:32:48]} 49. h8=Q Bxh8 50. Rxh8 {[%clk 0:42:14]} Ka3 {[%clk 0:32:44]} 
51. Ra8+ Kb4 {[%clk 0:32:40]} 52. Kd5 {[%clk 0:39:24]} Kc3 {[%clk 0:32:30]} 53. 
Rc8+ Kb4 {[%clk 0:32:15]} 54. Rc5 {[%clk 0:38:10]} Ka3 {[%clk 0:31:55]} 55. Rxb5 
{[%clk 0:37:58]} Kxa2 {[%clk 0:31:53]} 56. Rb8 {[%clk 0:37:41]} 1-0

[Event "Malawi Championship (W)"]
[Site "followchess.com"]
[Date "2022.04.17"]
[Round "8"]
[White "Mpinganjira, Ellen"]
[Black "Jambo, Linda"]
[Result "1-0"]
[WhiteElo "1360"]
[BlackElo "1450"]
[ECO "C62"]
[WhiteFed "MAW"]
[BlackFed "MAW"]
[FCGameId "-1238072698"]
[WhiteFideId "16400100"]
[BlackFideId "16400054"]
[TimeControl "5400+00"]

1. e4 {[%clk 1:29:58]} e5 {[%clk 1:29:55]} 2. Nf3 {[%clk 1:29:52]} Nc6 
{[%clk 1:29:47]} 3. Bb5 {[%clk 1:29:49]} d6 {[%clk 1:29:12]} 4. h3 
{[%clk 1:29:43]} Bd7 {[%clk 1:29:03]} 5. d3 {[%clk 1:29:20]} Be7 
{[%clk 1:28:43]} 6. a3 {[%clk 1:29:02]} Nf6 {[%clk 1:28:36]} 7. O-O 
{[%clk 1:28:55]} O-O {[%clk 1:28:29]} 8. Nc3 {[%clk 1:28:41]} a6 
{[%clk 1:28:11]} 9. Ba4 b5 10. Bb3 {[%clk 1:28:15]} h6 {[%clk 1:27:52]} 11. Ne2 
{[%clk 1:28:07]} Qc8 {[%clk 1:27:22]} 12. Ng3 {[%clk 1:27:37]} Be6 
{[%clk 1:27:01]} 13. Ba2 {[%clk 1:26:58]} Bxa2 {[%clk 1:25:22]} 14. Rxa2 
{[%clk 1:26:56]} Qe6 {[%clk 1:22:07]} 15. Ra1 {[%clk 1:26:53]} Rfd8 
{[%clk 1:21:42]} 16. Nf5 {[%clk 1:25:49]} Nh7 {[%clk 1:18:58]} 17. Nh2 
{[%clk 1:24:33]} Nd4 {[%clk 1:16:19]} 18. Nxe7+ Qxe7 {[%clk 1:16:08]} 19. c3 
{[%clk 1:22:20]} Ne6 {[%clk 1:15:30]} 20. Qf3 Qf6 21. Qg3 {[%clk 1:18:53]} Qg6 
{[%clk 1:15:00]} 22. Qxg6 {[%clk 1:17:49]} fxg6 {[%clk 1:14:58]} 23. f4 
{[%clk 1:15:46]} exf4 {[%clk 1:13:58]} 24. Bxf4 {[%clk 1:15:41]} Nxf4 
{[%clk 1:13:46]} 25. Rxf4 {[%clk 1:15:36]} g5 {[%clk 1:11:07]} 26. Rf2 Rf8 27. 
Raf1 {[%clk 1:13:54]} Rxf2 {[%clk 1:10:56]} 28. Rxf2 {[%clk 1:13:52]} Rf8 
{[%clk 1:10:36]} 29. Ng4 {[%clk 1:13:09]} Rxf2 {[%clk 1:09:59]} 30. Kxf2 Nf6 31. 
Ne3 {[%clk 1:12:26]} Kf7 {[%clk 1:09:48]} 32. Kf3 {[%clk 1:11:05]} h5 
{[%clk 1:09:05]} 33. Nc2 {[%clk 1:10:17]} c5 {[%clk 1:07:25]} 34. b4 
{[%clk 1:07:45]} Ke6 {[%clk 1:07:05]} 35. d4 {[%clk 1:07:15]} cxd4 
{[%clk 1:06:48]} 36. cxd4 {[%clk 1:06:53]} Nd7 {[%clk 1:03:36]} 37. Ne3 
{[%clk 1:06:31]} Nb6 {[%clk 1:02:49]} 38. Ke2 {[%clk 1:05:07]} d5 
{[%clk 1:01:12]} 39. exd5+ Nxd5 {[%clk 1:01:00]} 40. Nxd5 {[%clk 1:04:43]} Kxd5 
{[%clk 1:00:58]} 41. Kd3 {[%clk 1:04:24]} g6 {[%clk 1:00:47]} 42. g4 
{[%clk 1:03:38]} h4 {[%clk 0:56:55]} 43. Ke3 {[%clk 1:02:26]} Kc4 44. Ke4 
{[%clk 1:02:20]} Kb3 {[%clk 0:56:41]} 45. d5 {[%clk 1:02:14]} Kxa3 
{[%clk 0:56:40]} 46. d6 {[%clk 1:02:04]} Kxb4 {[%clk 0:56:37]} 47. d7 
{[%clk 1:01:45]} a5 {[%clk 0:56:34]} 48. d8=Q {[%clk 1:01:30]} a4 
{[%clk 0:56:32]} 49. Qd2+ Kc4 {[%clk 0:56:22]} 50. Qd4+ Kb3 {[%clk 0:56:09]} 51. 
Qd5+ Kb4 {[%clk 0:56:05]} 52. Kd3 {[%clk 0:54:50]} a3 {[%clk 0:56:01]} 53. Kc2 
{[%clk 0:54:22]} a2 {[%clk 0:55:32]} 54. Qxa2 Kc5 {[%clk 0:55:20]} 1-0

[Event "Malawi Championship (W)"]
[Site "followchess.com"]
[Date "2022.04.17"]
[Round "8"]
[White "Kapalamula Martha"]
[Black "Tadeyo Charity"]
[Result "1-0"]
[WhiteElo "1155"]
[BlackElo "1096"]
[ECO "C41"]
[WhiteFed "MAW"]
[BlackFed "MAW"]
[FCGameId "521105626"]
[WhiteFideId "20505116"]
[BlackFideId "20506988"]
[TimeControl "5400+00"]

1. e4 e5 2. Nf3 d6 3. Bc4 {[%clk 1:28:23]} h6 {[%clk 1:29:51]} 4. Nc3 
{[%clk 1:28:17]} Nf6 {[%clk 1:29:35]} 5. h3 {[%clk 1:27:35]} c5 {[%clk 1:29:14]} 
6. O-O {[%clk 1:27:04]} Nc6 {[%clk 1:29:11]} 7. d3 {[%clk 1:24:35]} Be7 
{[%clk 1:29:02]} 8. Be3 {[%clk 1:20:58]} O-O {[%clk 1:28:22]} 9. Nh4 Na5 
{[%clk 1:28:02]} 10. Ng6 {[%clk 1:13:11]} Nxc4 {[%clk 1:25:24]} 11. Nxe7+ Qxe7 
{[%clk 1:25:06]} 12. dxc4 {[%clk 1:12:52]} b6 {[%clk 1:24:30]} 13. Nd5 
{[%clk 1:12:21]} Qd8 {[%clk 1:23:37]} 14. f4 {[%clk 1:11:46]} Nxe4 
{[%clk 1:22:50]} 15. Qf3 {[%clk 1:09:54]} Bf5 {[%clk 1:21:55]} 16. fxe5 
{[%clk 1:08:52]} dxe5 {[%clk 1:20:51]} 17. Qxf5 Ng3 18. Qg4 {[%clk 1:07:07]} 
Nxf1 {[%clk 1:18:33]} 19. Bxh6 {[%clk 1:06:36]} g6 {[%clk 1:17:54]} 20. Bxf8 
{[%clk 1:03:53]} Kxf8 {[%clk 1:17:49]} 21. Rxf1 {[%clk 1:03:26]} Qd6 
{[%clk 1:17:08]} 22. Qh4 Kg7 23. Rf6 {[%clk 1:01:16]} Qd7 {[%clk 1:15:52]} 24. 
Qg5 {[%clk 1:00:02]} Re8 {[%clk 1:15:18]} 25. h4 {[%clk 0:59:36]} Re6 
{[%clk 1:14:07]} 26. h5 {[%clk 0:57:53]} Rxf6 {[%clk 1:13:20]} 27. Qxf6+ Kh6 
{[%clk 1:12:52]} 28. Qh8+ Kg5 {[%clk 1:12:30]} 29. Qxe5+ Kh6 {[%clk 1:11:54]} 
30. Qf4+ Kg7 {[%clk 1:11:13]} 31. h6+ Kf8 {[%clk 1:10:01]} 32. Qf6 
{[%clk 0:52:42]} Qf5 {[%clk 1:08:41]} 33. Qe6 1-0

[Event "Malawi Championship (W)"]
[Site "followchess.com"]
[Date "2022.04.17"]
[Round "8"]
[White "Kumwenda Tina"]
[Black "Namangale, Susan"]
[Result "0-1"]
[WhiteElo "1195"]
[BlackElo "1301"]
[ECO "B00"]
[WhiteFed "MAW"]
[BlackFed "MAW"]
[FCGameId "1121802553"]
[WhiteFideId "20502338"]
[BlackFideId "20501790"]
[TimeControl "5400+00"]

1. e4 {[%clk 1:29:57]} b6 {[%clk 1:29:46]} 2. Nf3 {[%clk 1:29:33]} Bb7 
{[%clk 1:29:34]} 3. Nc3 {[%clk 1:29:17]} e6 {[%clk 1:29:00]} 4. a3 
{[%clk 1:29:01]} d6 {[%clk 1:28:04]} 5. d4 {[%clk 1:25:31]} c5 {[%clk 1:27:23]} 
6. d5 {[%clk 1:21:38]} e5 {[%clk 1:26:35]} 7. Bb5+ {[%clk 1:21:09]} Nd7 
{[%clk 1:26:14]} 8. Be3 {[%clk 1:16:36]} Nf6 {[%clk 1:25:43]} 9. Bg5 
{[%clk 1:16:03]} h6 {[%clk 1:24:58]} 10. Bh4 {[%clk 1:15:51]} Be7 
{[%clk 1:24:02]} 11. Ne2 {[%clk 1:13:22]} Nxe4 {[%clk 1:23:39]} 12. Bxe7 
{[%clk 1:12:53]} Qxe7 {[%clk 1:23:30]} 13. Bxd7+ Qxd7 {[%clk 1:23:21]} 14. Qd3 
{[%clk 1:11:08]} f5 {[%clk 1:22:45]} 15. g4 {[%clk 1:07:46]} fxg4 16. Qxe4 
{[%clk 1:07:35]} gxf3 {[%clk 1:19:54]} 17. Qxf3 O-O-O 18. O-O-O Rhf8 19. Qe3 
{[%clk 1:04:37]} c4 {[%clk 1:18:14]} 20. Nc3 {[%clk 1:03:29]} Qf7 
{[%clk 1:17:05]} 21. Rhf1 {[%clk 1:02:16]} Qf4 {[%clk 1:16:06]} 22. Qxf4 
{[%clk 1:01:44]} Rxf4 {[%clk 1:15:59]} 23. Rd2 {[%clk 1:00:36]} Rdf8 
{[%clk 1:15:24]} 24. Nb5 {[%clk 1:00:22]} Kb8 {[%clk 1:10:08]} 25. c3 
{[%clk 0:47:32]} R8f6 {[%clk 1:09:31]} 26. a4 {[%clk 0:46:31]} a6 
{[%clk 1:08:12]} 27. Na3 {[%clk 0:46:16]} Bc8 {[%clk 1:07:25]} 28. Rg1 
{[%clk 0:42:08]} g5 {[%clk 1:06:54]} 29. Nc2 {[%clk 0:40:19]} Bd7 
{[%clk 1:06:24]} 30. Nb4 {[%clk 0:38:15]} a5 {[%clk 1:05:24]} 31. Nc6+ Kb7 
{[%clk 1:04:56]} 32. Ne7 {[%clk 0:35:38]} Bxa4 {[%clk 1:04:10]} 33. Ng8 
{[%clk 0:34:38]} Rg6 {[%clk 1:03:07]} 34. Nxh6 Rxh6 {[%clk 1:02:34]} 35. Rxg5 
Rxh2 36. Rg7+ Ka6 {[%clk 1:01:47]} 37. Rd7 {[%clk 0:32:18]} Rh1+ 0-1

[Event "Malawi Championship (W)"]
[Site "followchess.com"]
[Date "2022.04.17"]
[Round "7"]
[White "Kapalamula Martha"]
[Black "Shriyan santosh Priyasha"]
[Result "0-1"]
[WhiteElo "1155"]
[BlackElo "1583"]
[ECO "B06"]
[WhiteFed "MAW"]
[BlackFed "MAW"]
[FCGameId "-832239726"]
[WhiteFideId "20505116"]
[BlackFideId "20505353"]
[TimeControl "5400+00"]

1. e4 {[%clk 1:27:50]} g6 {[%clk 1:29:45]} 2. d4 {[%clk 1:27:44]} Bg7 
{[%clk 1:29:37]} 3. Nf3 {[%clk 1:27:23]} d6 {[%clk 1:29:25]} 4. Bc4 
{[%clk 1:26:54]} Nf6 {[%clk 1:29:15]} 5. Nc3 {[%clk 1:26:04]} O-O 
{[%clk 1:29:01]} 6. Qe2 {[%clk 1:25:18]} Nfd7 {[%clk 1:26:19]} 7. Bf4 
{[%clk 1:21:09]} c5 {[%clk 1:25:20]} 8. Rd1 {[%clk 1:20:30]} cxd4 
{[%clk 1:24:38]} 9. Nd5 {[%clk 1:18:01]} e6 {[%clk 1:18:33]} 10. Nb4 
{[%clk 1:14:06]} Qb6 {[%clk 1:15:17]} 11. Nd3 {[%clk 1:11:33]} e5 
{[%clk 1:13:53]} 12. Bg5 {[%clk 1:09:56]} Nf6 {[%clk 1:12:31]} 13. O-O 
{[%clk 1:09:08]} Nc6 {[%clk 1:11:18]} 14. a3 {[%clk 1:08:21]} Re8 
{[%clk 1:09:01]} 15. b4 {[%clk 1:05:51]} Be6 {[%clk 1:07:44]} 16. Bxe6 
{[%clk 1:03:17]} Rxe6 {[%clk 1:07:10]} 17. Nh4 {[%clk 1:02:49]} h6 
{[%clk 1:06:08]} 18. Bxf6 {[%clk 1:01:56]} Bxf6 {[%clk 1:01:54]} 19. Qg4 
{[%clk 1:00:51]} Bg7 {[%clk 1:00:37]} 20. Kh1 {[%clk 0:57:52]} Rae8 
{[%clk 0:56:40]} 21. f4 {[%clk 0:57:37]} exf4 {[%clk 0:56:18]} 22. Qxf4 
{[%clk 0:50:17]} R8e7 {[%clk 0:55:12]} 23. Qg4 {[%clk 0:43:04]} Rxe4 
{[%clk 0:53:28]} 24. Rf4 {[%clk 0:42:09]} Re2 {[%clk 0:43:57]} 25. Rdf1 
{[%clk 0:35:56]} h5 {[%clk 0:40:12]} 26. Qg3 {[%clk 0:31:17]} Ne5 27. Nxe5 
{[%clk 0:25:56]} dxe5 {[%clk 0:36:35]} 28. R4f2 {[%clk 0:19:29]} Rxf2 
{[%clk 0:35:45]} 29. Qxf2 {[%clk 0:18:20]} e4 {[%clk 0:35:02]} 30. Qf4 
{[%clk 0:15:40]} Qc7 {[%clk 0:34:30]} 31. Qg5 {[%clk 0:14:22]} Re5 
{[%clk 0:32:10]} 32. Qd2 {[%clk 0:12:31]} Re7 {[%clk 0:30:03]} 33. g3 
{[%clk 0:08:22]} e3 {[%clk 0:29:46]} 34. Qd3 {[%clk 0:08:00]} Qc6+ 
{[%clk 0:28:33]} 35. Kg1 {[%clk 0:07:38]} Rc7 {[%clk 0:27:43]} 36. Qb3 
{[%clk 0:04:02]} Qxc2 {[%clk 0:26:48]} 37. Qd5 {[%clk 0:02:23]} Qc6 
{[%clk 0:25:13]} 38. Qd8+ Kh7 {[%clk 0:24:42]} {-error} 0-1